fUSD/lending_fUSD_20240327
["ID","MTS","AMOUNT","RATE_DAILY","PERIOD"]
[320690063,1711497618084,1126.95525326,0.000179,2]
[320690064,1711497634396,172.360608,0.0001799,2]
[320690065,1711497659230,448.99879116,0.000179,2]
[320690066,1711497787973,8815.58615454,0.000179,2]
[320690067,1711497822411,11027.84213655,0.000179,2]
[320690068,1711497862548,22493.15640297,0.000179,2]
[320690069,1711497904335,457.0,0.0001979,15]
[320690070,1711497904888,457.0,0.0001978,15]
[320690071,1711497905445,457.0,0.0001977,15]
[320690072,1711497913581,200.66018716,0.000179,2]
[320690073,1711497979538,-3239.0,0.00018,2]
[320690074,1711497997388,422.4505121,0.00017999,2]
[320690077,1711498002836,216.82096313,0.000179,2]
[320690078,1711498007275,8204.38758442,0.000179,2]
[320690079,1711498014892,949.0233613,0.00017005,2]
[320690080,1711498025600,281.94650418,0.000179,2]
[320690081,1711498029230,-2580.04367411,0.00018,2]
[320690082,1711498049092,-1735.15735724,0.00018,2]
[320690083,1711498060132,299.33252744,0.000179,2]
[320690085,1711498118030,293.46059014,0.00017999,5]
[320690086,1711498118058,1446.05805899,0.00017999,5]
[320690087,1711498120827,407.36408909,0.00017999,2]
[320690088,1711498125645,536.03703945,0.00017999,2]
[320690089,1711498134970,1890.0,0.000179,2]
[320690090,1711498162672,10034.43046818,0.000179,2]
[320690091,1711498174280,180.41854194,0.000179,2]
[320690097,1711498231499,-313276.35553372,0.00018,2]
[320690098,1711498231512,-26789.803681,0.00018,2]
[320690099,1711498231564,-484.28691844,0.00018,2]
[320690100,1711498231575,-500.0,0.00018,2]
[320690101,1711498231587,-1022.60486089,0.00018,2]
[320690102,1711498231624,-9452.06184582,0.00018,2]
[320690103,1711498231635,-2231.45490043,0.00018,2]
[320690104,1711498231646,-1890.0,0.00018,2]
[320690105,1711498231685,-276.597,0.00018,2]
[320690106,1711498231696,-395.5444628,0.00018,2]
[320690107,1711498231747,-14934.86391984,0.00018,2]
[320690116,1711498237521,-8140.16131305,0.00018,2]
[320690117,1711498237581,-295678.57040754,0.00018,2]
[320690118,1711498237592,-350.38615,0.00018,2]
[320690119,1711498237604,-980.13877103,0.00018,2]
[320690120,1711498237615,-309774.92976424,0.00018,2]
[320690121,1711498237667,-296.89423221,0.00018,2]
[320690122,1711498237680,-741.27723955,0.00018,2]
[320690123,1711498237694,-420.8888349,0.00018,2]
[320690124,1711498237706,-298.52743707,0.00018,2]
[320690125,1711498237730,-13845.36767831,0.00018,2]
[320690126,1711498237742,-17287.19586685,0.00018,2]
[320690127,1711498237755,-1579556.89862849,0.00018,2]
[320690128,1711498237765,-321.90177082,0.00018,2]
[320690129,1711498237776,-285001.80029147,0.00018,2]
[320690130,1711498237786,-199.55501828,0.00018,2]
[320690131,1711498237795,-329.74523638,0.000181,2]
[320690132,1711498237805,-187.96433612,0.000181,2]
[320690133,1711498237815,-7831.8481745,0.000183,2]
[320690134,1711498237824,-1067.83,0.00018509,2]
[320690135,1711498237834,-881.50225511,0.00019,2]
[320690136,1711498237844,-881.50225511,0.00019,2]
[320690137,1711498237853,-881.50225511,0.00019,2]
[320690138,1711498237862,-881.50225511,0.00019,2]
[320690139,1711498237871,-881.50225511,0.00019,2]
[320690140,1711498237880,-881.50225511,0.00019,2]
[320690141,1711498237890,-881.50225511,0.00019,2]
[320690142,1711498237899,-881.50225511,0.00019,2]
[320690143,1711498237908,-881.50225511,0.00019,2]
[320690144,1711498237917,-881.50225511,0.00019,2]
[320690145,1711498237926,-881.50225511,0.00019,2]
[320690146,1711498237935,-881.50225511,0.00019,2]
[320690147,1711498237948,-881.50225511,0.00019,2]
[320690148,1711498237957,-881.50225511,0.00019,2]
[320690149,1711498237966,-881.50225511,0.00019,2]
[320690150,1711498237976,-881.50225511,0.00019,2]
[320690151,1711498237985,-881.50225511,0.00019,2]
[320690152,1711498237994,-881.50225511,0.00019,2]
[320690153,1711498238004,-881.50225511,0.00019,2]
[320690154,1711498238018,-881.50225511,0.00019,2]
[320690155,1711498238029,-881.50225511,0.00019,2]
[320690156,1711498238039,-881.50225511,0.00019,2]
[320690157,1711498238048,-881.50225511,0.00019,2]
[320690158,1711498238059,-881.50225511,0.00019,2]
[320690159,1711498238068,-881.50225511,0.00019,2]
[320690160,1711498238078,-881.50225511,0.00019,2]
[320690161,1711498238088,-881.50225511,0.00019,2]
[320690162,1711498238097,-881.50225511,0.00019,2]
[320690163,1711498238107,-881.50225511,0.00019,2]
[320690164,1711498238117,-881.50225511,0.00019,2]
[320690165,1711498238126,-881.50225511,0.00019,2]
[320690166,1711498238135,-881.50225511,0.00019,2]
[320690167,1711498238144,-881.50225511,0.00019,2]
[320690168,1711498238153,-881.50225511,0.00019,2]
[320690169,1711498238162,-881.50225511,0.00019,2]
[320690170,1711498238171,-881.50225511,0.00019,2]
[320690171,1711498238181,-881.50225511,0.00019,2]
[320690172,1711498238191,-881.50225511,0.00019,2]
[320690173,1711498238201,-881.50225511,0.00019,2]
[320690174,1711498238210,-881.50225511,0.00019,2]
[320690175,1711498238220,-881.50225511,0.00019,2]
[320690176,1711498238230,-881.50225511,0.00019,2]
[320690177,1711498238239,-881.50225511,0.00019,2]
[320690178,1711498238248,-881.50225511,0.00019,2]
[320690179,1711498238258,-881.50225511,0.00019,2]
[320690180,1711498238267,-881.50225511,0.00019,2]
[320690181,1711498238278,-881.50225511,0.00019,2]
[320690182,1711498238287,-881.50225511,0.00019,2]
[320690183,1711498238298,-881.50225511,0.00019,2]
[320690184,1711498238309,-881.50225511,0.00019,2]
[320690185,1711498238318,-881.50225511,0.00019,2]
[320690186,1711498238327,-881.50225511,0.00019,2]
[320690187,1711498238336,-881.50225511,0.00019,2]
[320690188,1711498238346,-881.50225511,0.00019,2]
[320690189,1711498238355,-881.50225511,0.00019,2]
[320690190,1711498238364,-881.50225511,0.00019,2]
[320690191,1711498238374,-881.50225511,0.00019,2]
[320690192,1711498238384,-881.50225511,0.00019,2]
[320690193,1711498238394,-881.50225511,0.00019,2]
[320690194,1711498238405,-881.50225511,0.00019,2]
[320690195,1711498238415,-881.50225511,0.00019,2]
[320690196,1711498238424,-881.50225511,0.00019,2]
[320690197,1711498238435,-881.50225511,0.00019,2]
[320690198,1711498238445,-881.50225511,0.00019,2]
[320690199,1711498238454,-881.50225511,0.00019,2]
[320690200,1711498238464,-881.50225511,0.00019,2]
[320690201,1711498238473,-881.50225511,0.00019,2]
[320690202,1711498238483,-881.50225511,0.00019,2]
[320690203,1711498238493,-881.50225511,0.00019,2]
[320690204,1711498238503,-881.50225511,0.00019,2]
[320690205,1711498238512,-881.50225511,0.00019,2]
[320690206,1711498238523,-881.50225511,0.00019,2]
[320690207,1711498238532,-881.50225511,0.00019,2]
[320690208,1711498238542,-881.50225511,0.00019,2]
[320690209,1711498238552,-881.50225511,0.00019,2]
[320690210,1711498238561,-881.50225511,0.00019,2]
[320690211,1711498238571,-881.50225511,0.00019,2]
[320690212,1711498238580,-881.50225511,0.00019,2]
[320690213,1711498238590,-881.50225511,0.00019,2]
[320690214,1711498238599,-881.50225511,0.00019,2]
[320690215,1711498238609,-881.50225511,0.00019,2]
[320690216,1711498238618,-881.50225511,0.00019,2]
[320690217,1711498238628,-881.50225511,0.00019,2]
[320690218,1711498238638,-881.50225511,0.00019,2]
[320690219,1711498238648,-881.50225511,0.00019,2]
[320690220,1711498238657,-881.50225511,0.00019,2]
[320690221,1711498238666,-881.50225511,0.00019,2]
[320690222,1711498238676,-881.50225511,0.00019,2]
[320690223,1711498238685,-881.50225511,0.00019,2]
[320690224,1711498238695,-881.50225511,0.00019,2]
[320690225,1711498238704,-881.50225511,0.00019,2]
[320690226,1711498238714,-881.50225511,0.00019,2]
[320690227,1711498238724,-881.50225511,0.00019,2]
[320690228,1711498238734,-881.50225511,0.00019,2]
[320690229,1711498238744,-881.50225511,0.00019,2]
[320690230,1711498238754,-881.50225511,0.00019,2]
[320690231,1711498238773,-881.50225511,0.00019,2]
[320690232,1711498238785,-881.50225511,0.00019,2]
[320690233,1711498238795,-881.50225511,0.00019,2]
[320690234,1711498238805,-881.50225511,0.00019,2]
[320690235,1711498238815,-442.73003954,0.00019178,2]
[320690236,1711498238825,-422.28792937,0.00019178,2]
[320690237,1711498238835,-451.65863963,0.00019178,2]
[320690238,1711498238844,-500.0,0.00019178,2]
[320690239,1711498238854,-500.0,0.00019178,2]
[320690240,1711498238864,-194.96763184,0.00019178,2]
[320690241,1711498238875,-337.79777701,0.00019178,2]
[320690242,1711498238885,-538.42110897,0.00019178,2]
[320690243,1711498238895,-154.45,0.0001918,2]
[320690244,1711498238905,-154.45,0.0001918,2]
[320690245,1711498238915,-154.45,0.0001918,2]
[320690246,1711498238926,-154.45,0.0001918,2]
[320690247,1711498238936,-154.45,0.0001918,2]
[320690248,1711498238947,-154.45,0.0001918,2]
[320690249,1711498238957,-154.45,0.0001918,2]
[320690250,1711498238967,-3315.6194904,0.000192,2]
[320690251,1711498238980,-161.65,0.000192,2]
[320690252,1711498238990,-176.23,0.000192,2]
[320690253,1711498239000,-233.09,0.000192,2]
[320690254,1711498239010,-860.48618658,0.000195,2]
[320690255,1711498239019,-499.99,0.000195,2]
[320690256,1711498239033,-1000.0,0.00019789,2]
[320690257,1711498239043,-1000.0,0.00019789,2]
[320690258,1711498239053,-300.05578703,0.000198,2]
[320690259,1711498239063,-5594.72,0.000198,2]
[320690260,1711498239074,-7569.0,0.000198,2]
[320690261,1711498239084,-150.99,0.000198,2]
[320690262,1711498239094,-877.47,0.000198,2]
[320690263,1711498239103,-151.77687869,0.000199,2]
[320690264,1711498239112,-991.29,0.000199,2]
[320690265,1711498239123,-150.99,0.000199,2]
[320690266,1711498239133,-150.99,0.000199,2]
[320690267,1711498239142,-3043.17143991,0.0002,2]
[320690268,1711498239152,-259.73532178,0.0002,2]
[320690269,1711498239162,-500.0,0.00020235,2]
[320690270,1711498239173,-250.0,0.00020241,2]
[320690271,1711498239183,-2273.39,0.00020301,2]
[320690272,1711498239193,-151.7768786,0.0002033,2]
[320690273,1711498239203,-4981.6,0.0002034,2]
[320690274,1711498239212,-250.0,0.00020348,2]
[320690275,1711498239221,-10000.0,0.00020367,2]
[320690276,1711498239231,-663.58,0.00020369,2]
[320690277,1711498239241,-535.08,0.00020377,2]
[320690278,1711498239250,-200.0,0.00020378,2]
[320690279,1711498239260,-2763.02,0.00020398,2]
[320690280,1711498239269,-849.04,0.00020411,2]
[320690281,1711498239280,-169.6,0.00020434,2]
[320690282,1711498239290,-500.0,0.00020705,2]
[320690283,1711498239300,-200.0,0.00020722,2]
[320690284,1711498239309,-1067.83,0.00020773,2]
[320690285,1711498239320,-154.14,0.00020832,2]
[320690288,1711498239331,-500.0,0.00020861,2]
[320690290,1711498239341,-1618.76,0.00020864,2]
[320690292,1711498239352,-154.14,0.00020896,2]
[320690294,1711498239361,-23900.0,0.00020917,2]
[320690296,1711498239372,-154.14,0.0002096,2]
[320690298,1711498239381,-172.97,0.00020966,2]
[320690300,1711498239390,-2452.2535355,0.00021,2]
[320690302,1711498239400,-2200.81580875,0.00021,2]
[320690304,1711498239411,-154.14,0.00021023,2]
[320690306,1711498239421,-1379.24,0.00021079,2]
[320690308,1711498239430,-154.14,0.00021087,2]
[320690310,1711498239440,-290.65,0.00021096,2]
[320690312,1711498239450,-154.14,0.00021151,2]
[320690315,1711498239459,-154.14,0.00021215,2]
[320690318,1711498239469,-154.14,0.00021279,2]
[320690335,1711498239541,-154.14,0.00021343,2]
[320690338,1711498239551,-154.14,0.00021407,2]
[320690339,1711498239559,-154.14,0.00021471,2]
[320690344,1711498239570,-167.69,0.00021506,2]
[320690347,1711498239579,-154.14,0.00021534,2]
[320690349,1711498239589,-154.14,0.00021598,2]
[320690352,1711498239598,-802.44,0.00021612,2]
[320690355,1711498239607,-802.44,0.00021618,2]
[320690358,1711498239617,-802.44,0.00021624,2]
[320690361,1711498239627,-802.44,0.00021629,2]
[320690364,1711498239636,-802.44,0.00021635,2]
[320690367,1711498239645,-802.44,0.00021641,2]
[320690369,1711498239655,-802.44,0.00021646,2]
[320690373,1711498239664,-802.44,0.00021652,2]
[320690375,1711498239674,-802.44,0.00021658,2]
[320690379,1711498239684,-154.14,0.00021662,2]
[320690382,1711498239694,-802.44,0.00021663,2]
[320690384,1711498239703,-802.44,0.00021669,2]
[320690387,1711498239713,-802.44,0.00021675,2]
[320690390,1711498239723,-802.44,0.00021681,2]
[320690393,1711498239732,-802.44,0.00021686,2]
[320690396,1711498239742,-802.44,0.00021692,2]
[320690399,1711498239751,-802.44,0.00021698,2]
[320690402,1711498239760,-802.44,0.00021703,2]
[320690405,1711498239770,-802.44,0.00021709,2]
[320690408,1711498239781,-802.44,0.00021715,2]
[320690411,1711498239791,-802.44,0.0002172,2]
[320690414,1711498239800,-154.14,0.00021726,2]
[320690417,1711498239810,-150.0,0.00021754,2]
[320690420,1711498239819,-154.14,0.0002179,2]
[320690423,1711498239828,-154.14,0.00021854,2]
[320690426,1711498239838,-167.68,0.00021888,2]
[320690429,1711498239848,-154.14,0.00021918,2]
[320690431,1711498239858,-11900.0,0.00021918,2]
[320690432,1711498239867,-250.0,0.00021918,2]
[320690433,1711498239877,-253.6076542,0.00021918,2]
[320690435,1711498239886,-150.0,0.00021918,2]
[320690437,1711498239895,-7031.33458345,0.00022,6]
[320690439,1711498239904,-155.0,0.00022,2]
[320690441,1711498239914,-643.93684455,0.00022,2]
[320690442,1711498239923,-925.32692829,0.00022,2]
[320690445,1711498239932,-42164.86673814,0.00022,2]
[320690447,1711498239942,-8815.58615452,0.00022318,2]
[320690449,1711498239951,-167.69,0.00022393,2]
[320690451,1711498239960,-10034.43046815,0.00022428,2]
[320690453,1711498239969,-1000.0,0.00022466,2]
[320690455,1711498239979,-154.75,0.00022663,2]
[320690458,1711498239988,-180.0,0.00022756,2]
[320690461,1711498239997,-151.7768786,0.0002276,2]
[320690464,1711498240007,-13136.08171308,0.0002301,2]
[320690467,1711498240021,-179.2,0.0002302,2]
[320690470,1711498240030,-1067.83,0.00023037,2]
[320690473,1711498240039,-2763.02,0.00023137,2]
[320690475,1711498240048,-1249.69130811,0.00023142,2]
[320690478,1711498240058,-167.69,0.00023281,2]
[320690481,1711498240068,-220000.0,0.000235,2]
[320690484,1711498240076,-13000.0,0.000235,2]
[320690487,1711498240085,-1921.49141247,0.0002354,2]
[320690489,1711498240096,-167.68,0.00023712,2]
[320690490,1711498240105,-169.6,0.00023839,2]
[320690492,1711498240114,-223.94252704,0.00024,2]
[320690494,1711498240123,-757.54733688,0.00024,2]
[320690496,1711498240132,-1500.0,0.0002408,2]
[320690498,1711498240142,-1028.1604716,0.000241,2]
[320690500,1711498240151,-3800.6943237,0.0002415,2]
[320690502,1711498240160,-167.69,0.00024168,2]
[320690504,1711498240170,-391.80435575,0.0002421,2]
[320690506,1711498240179,-924.01910281,0.0002425,2]
[320690508,1711498240189,-2594.54354498,0.00025,2]
[320690510,1711498240198,-1362.85766619,0.00025,2]
[320690512,1711498240209,-155.0,0.00025,2]
[320690514,1711498240218,-14466.44374507,0.00025,2]
[320690516,1711498240227,-374766.26312051,0.00025,4]
[320690518,1711498240237,-2837.10444653,0.00025,2]
[320690520,1711498240245,-13366.08636482,0.00025,2]
[320690522,1711498240254,-167.69,0.00025055,2]
[320690524,1711498240264,-154.75,0.00025067,2]
[320690526,1711498240275,-3154.81247333,0.000251,2]
[320690528,1711498240284,-151.7768786,0.0002519,2]
[320690530,1711498240293,-1067.83,0.00025301,2]
[320690532,1711498240303,-167.68,0.00025536,2]
[320690534,1711498240313,-2061.5,0.00025671,2]
[320690536,1711498240323,-233.09,0.000258,2]
[320690537,1711498240332,-2763.02,0.00025877,2]
[320690540,1711498240342,-70341.0307008,0.000263,2]
[320690541,1711498240352,-8815.58615452,0.00026736,2]
[320690543,1711498240362,-10034.43046815,0.00026957,2]
[320690545,1711498240371,-10924.50479976,0.00027,2]
[320690547,1711498240381,-267761.38883159,0.00027,2]
[320690549,1711498240390,-6235.46445386,0.00027,2]
[320690551,1711498240399,-169.6,0.00027245,120]
[320690553,1711498240408,-167.68,0.0002736,2]
[320690555,1711498240417,-150.0,0.00027397,2]
[320690557,1711498240427,-154.75,0.00027472,2]
[320690559,1711498240436,-1067.83,0.00027564,2]
[320690561,1711498240445,-176.23,0.000276,2]
[320690563,1711498240455,-151.7768786,0.0002762,2]
[320690565,1711498240464,-1249.69130811,0.00028384,4]
[320690567,1711498240473,-663.58,0.00028516,2]
[320690569,1711498240482,-179.2,0.00028775,120]
[320690571,1711498240491,-559.18577829,0.00029,2]
[320690573,1711498240500,-19398.779952,0.00029,2]
[320690575,1711498240509,-167.68,0.00029184,2]
[320690577,1711498240519,-1067.83,0.00029828,2]
[320690579,1711498240530,-2632.61490269,0.0002999,2]
[320690581,1711498240538,-150.0,0.00029996,10]
[320690583,1711498240548,-1829.86276869,0.00029997,2]
[320690585,1711498240557,-4990.995237,0.0003,4]
[320690586,1711498240566,-3045.40537228,0.0003,4]
[320690588,1711498240575,-677.45508372,0.0003,4]
[320690590,1711498240585,-2236917.01419372,0.0003,2]
[320690592,1711498240594,-4517.79069262,0.0003,2]
[320690594,1711498240603,-11768.4787993,0.0003,7]
[320690596,1711498240612,-151.7768786,0.0003005,2]
[320690598,1711498240621,-169.6,0.00030651,120]
[320690600,1711498240630,-167.68,0.00031008,2]
[320690602,1711498240640,-8815.58615452,0.00031155,2]
[320690604,1711498240649,-10034.43046815,0.00031485,2]
[320690606,1711498240658,-233.09,0.000315,2]
[320690608,1711498240668,-179.2,0.00031653,120]
[320690610,1711498240677,-1000.0,0.0003187,2]
[320690612,1711498240686,-150.0,0.00031998,10]
[320690614,1711498240695,-1067.83,0.00032092,2]
[320690616,1711498240704,-176.23,0.000321,2]
[320690618,1711498240713,-290.65,0.00032329,2]
[320690620,1711498240722,-151.7768786,0.0003248,2]
[320690622,1711498240732,-161.65,0.000325,2]
[320690623,1711498240742,-158.36,0.00032548,15]
[320690624,1711498240751,-167.68,0.00032832,2]
[320690625,1711498240760,-200.0,0.0003325,10]
[320690626,1711498240770,-150.0,0.00033274,2]
[320690628,1711498240781,-150.0,0.00033274,2]
[320690630,1711498240790,-150.0,0.00033274,2]
[320690632,1711498240800,-150.0,0.00033274,2]
[320690634,1711498240809,-154.999999,0.0003335,2]
[320690636,1711498240818,-1249.69130811,0.00033626,6]
[320690638,1711498240828,-150.0,0.00034247,2]
[320690640,1711498240837,-1067.83,0.00034356,2]
[320690642,1711498240846,-179.2,0.0003453,120]
[320690644,1711498240855,-9030.78659323,0.000348,4]
[320690645,1711498240864,-151.7768786,0.0003491,2]
[320690646,1711498240874,-48637.72474348,0.0003499,2]
[320690647,1711498240883,-1278.00407762,0.00035,4]
[320690648,1711498240892,-150.0,0.00035572,2]
[320690649,1711498240901,-8815.58615452,0.00035573,8]
[320690650,1711498240910,-199.55501828,0.00035676,2]
[320690651,1711498240919,-2500.0,0.000357,22]
[320690652,1711498240928,-187.9643361,0.00035726,2]
[320690653,1711498240937,-1000.0,0.00035854,2]
[320690654,1711498240947,-210.28360927,0.00035895,8]
[320690655,1711498240959,-329.74523638,0.0003593,2]
[320690656,1711498240969,-2816.0,0.00035977,3]
[320690657,1711498240978,-10034.43046815,0.00036014,2]
[320690658,1711498240987,-1500.0,0.000362,22]
[320690659,1711498240996,-333.814924,0.00036438,14]
[320690660,1711498241006,-1067.83,0.0003662,2]
[320690661,1711498241019,-600.0,0.000367,120]
[320690662,1711498241029,-1500.0,0.000367,22]
[320690663,1711498241038,-800.0,0.00036822,2]
[320690664,1711498241047,-318.45,0.00036836,30]
[320690665,1711498241058,-318.0,0.00036836,30]
[320690666,1711498241067,-4000.0,0.00036894,2]
[320690667,1711498241076,-169334.2396015,0.00036894,7]
[320690668,1711498241222,-124033.32309247,0.00036894,7]
[320690669,1711498241232,-328.0,0.00036894,4]
[320690670,1711498241241,-1254.0,0.00036894,4]
[320690671,1711498241249,-2061.5,0.00036904,2]
[320690672,1711498241259,-158.36,0.00037114,15]
[320690673,1711498241269,-333.814924,0.0003726,14]
[320690674,1711498241281,-151.7768786,0.0003734,2]
[320690675,1711498241291,-5798.61737087,0.00038,120]
[320690676,1711498241300,-176.23,0.00038,2]
[320690677,1711498241310,-333.814924,0.00038082,14]
[320690678,1711498241320,-150.0,0.00038503,120]
[320690679,1711498241329,-155.0,0.000387,4]
[320690680,1711498241338,-1249.69130811,0.00038868,9]
[320690681,1711498241347,-1067.83,0.00038884,2]
[320690682,1711498241357,-333.814924,0.00038904,14]
[320690683,1711498241367,-333.814924,0.00039726,14]
[320690684,1711498241376,-151.7768786,0.0003977,5]
[320690685,1711498241386,-1000.0,0.00039838,2]
[320690686,1711498241398,-8815.58615452,0.00039991,13]
[320690687,1711498241408,-27023.55996981,0.0004,4]
[320690688,1711498241417,-208234.57163213,0.0004,2]
[320690689,1711498241427,-892.02580912,0.0004,30]
[320690690,1711498241436,-7905.08180649,0.0004,4]
[320690691,1711498241446,-5742.09513247,0.0004,4]
[320690692,1711498241456,-10431.7034283,0.0004,7]
[320690693,1711498241465,-3342.25187115,0.0004,4]
[320690694,1711498241476,-22032.83014998,0.0004,4]
[320690695,1711498241485,-541.09275267,0.0004,120]
[320690696,1711498241495,-2000.0,0.0004,120]
[320690697,1711498241505,-10034.43046815,0.00040542,2]
[320690698,1711498241514,-333.814924,0.00040548,14]
[320690699,1711498241524,-1000.0,0.000406,15]
[320690700,1711498241534,-150.0,0.00040658,120]
[320690701,1711498241543,-1000.0,0.000409,15]
[320690702,1711498241552,-1500.0,0.00041096,120]
[320690703,1711498241562,-183.0,0.00041096,2]
[320690704,1711498241571,-150.0,0.00041096,2]
[320690705,1711498241580,-1067.83,0.00041148,2]
[320690706,1711498241591,-333.814924,0.0004137,14]
[320690707,1711498241601,-158.36,0.0004168,15]
[320690708,1711498241610,-150.0,0.00041734,120]
[320690709,1711498241620,-333.814924,0.00042192,14]
[320690710,1711498241630,-151.7768786,0.000422,15]
[320690711,1711498241643,-333.814924,0.00043014,14]
[320690712,1711498241654,-409.18,0.00043244,2]
[320690713,1711498241665,-409.18,0.00043244,2]
[320690714,1711498241678,-409.18,0.00043244,2]
[320690715,1711498241688,-409.18,0.00043244,2]
[320690716,1711498241699,-924.23,0.00043244,2]
[320690717,1711498241709,-517.56,0.00043381,2]
[320690718,1711498241718,-347.34,0.00043381,2]
[320690719,1711498241728,-415.59,0.00043381,2]
[320690720,1711498241739,-150.0,0.00043381,2]
[320690721,1711498241748,-291.09,0.00043381,2]
[320690722,1711498241757,-517.56,0.00043381,2]
[320690723,1711498241768,-150.0,0.00043381,2]
[320690724,1711498241780,-415.59,0.00043381,2]
[320690725,1711498241790,-347.34,0.00043381,2]
[320690726,1711498241800,-517.56,0.00043381,2]
[320690727,1711498241810,-415.59,0.00043381,2]
[320690728,1711498241819,-150.0,0.00043381,2]
[320690729,1711498241829,-347.34,0.00043381,2]
[320690730,1711498241838,-415.59,0.00043381,2]
[320690731,1711498241848,-150.0,0.00043381,2]
[320690732,1711498241858,-340.46,0.00043381,2]
[320690733,1711498241868,-347.34,0.00043381,2]
[320690734,1711498241878,-415.59,0.00043381,2]
[320690735,1711498241888,-300.97,0.00043381,2]
[320690736,1711498241897,-347.34,0.00043381,2]
[320690737,1711498241908,-150.0,0.00043381,2]
[320690738,1711498241917,-1067.83,0.00043412,2]
[320690739,1711498241927,-290.65,0.00043562,2]
[320690740,1711498241937,-1000.0,0.00043822,2]
[320690741,1711498241946,-333.814924,0.00043836,14]
[320690742,1711498241957,-727.0,0.000439,2]
[320690743,1711498241966,-5000.0,0.00044,14]
[320690744,1711498241976,-500.0,0.00044,120]
[320690745,1711498241986,-1371.0,0.00044,2]
[320690746,1711498241995,-50000.0,0.00044,7]
[320690747,1711498242006,-829.0,0.00044082,7]
[320690748,1711498242016,-1249.69130811,0.0004411,11]
[320690749,1711498242028,-162.88,0.00044203,2]
[320690750,1711498242039,-924.23,0.00044203,2]
[320690751,1711498242050,-924.23,0.00044203,2]
[320690752,1711498242061,-924.23,0.00044203,2]
[320690753,1711498242070,-415.59,0.00044203,2]
[320690754,1711498242080,-415.59,0.00044203,2]
[320690755,1711498242090,-415.59,0.00044203,2]
[320690756,1711498242100,-415.59,0.00044203,2]
[320690757,1711498242111,-415.59,0.00044203,2]
[320690758,1711498242121,-415.59,0.00044203,2]
[320690759,1711498242131,-415.59,0.00044203,2]
[320690760,1711498242141,-415.59,0.00044203,2]
[320690761,1711498242151,-351.39,0.00044203,2]
[320690762,1711498242161,-245.21,0.00044203,2]
[320690763,1711498242170,-887.57,0.00044273,2]
[320690764,1711498242181,-8815.58615452,0.00044409,19]
[320690765,1711498242191,-151.7768786,0.0004463,24]
[320690766,1711498242201,-22493.15640296,0.00045056,2]
[320690767,1711498242211,-10034.43046815,0.00045071,2]
[320690768,1711498242220,-161.65,0.000453,7]
[320690769,1711498242230,-151.032708,0.00045498,88]
[320690770,1711498242241,-1067.83,0.00045676,2]
[320690771,1711498242251,-173.032708,0.00045798,89]
[320690772,1711498242261,-176.23,0.000459,7]
[320690773,1711498242271,-158.36,0.00046247,15]
[320690774,1711498242283,-151.032708,0.00046498,90]
[320690775,1711498242294,-151.032708,0.00046798,91]
[320690776,1711498242305,-151.7768786,0.0004706,33]
[320690777,1711498242315,-173.032708,0.00047498,92]
[320690778,1711498242325,-173.032708,0.00047798,93]
[320690779,1711498242336,-152.15569369,0.00047803,30]
[320690780,1711498242347,-1000.0,0.00047805,2]
[320690781,1711498242359,-1067.83,0.00047939,2]
[320690782,1711498242370,-250.0,0.00047945,2]